bitfinex/quotes_ETHUSD_20250428
["timestamp","ask_amount","ask_price","bid_price","bid_amount"]
[1745864257082,8.89415227,1769.3,1768.8,14.5]
[1745864257278,0.88941523,1769.2,1768.8,14.5]
[1745864257754,0.2421,1769.1,1768.8,14.5]
[1745864258083,0.2421,1768.9,1768.4,0.7679]
[1745864258269,8.59666797,1768.9,1768.2,0.7679]
[1745864258464,0.2421,1768.8,1768.2,0.7679]
[1745864258673,1.69131334,1768.8,1768.3,14.5]
[1745864258987,1.69131334,1768.8,1768.2,0.64234851]
[1745864259344,1.69131334,1768.8,1768.3,14.5]
[1745864259541,0.2421,1768.8,1768.3,20.15512277]
[1745864260187,0.2421,1768.8,1768.3,14.5]
[1745864260971,3.0,1768.7,1768.3,14.5]
[1745864261203,0.2421,1768.5,1768.3,14.5]
[1745864267981,0.2421,1768.5,1768.1,5.65556591]
[1745864268308,0.2421,1768.5,1768.1,6.8689065]
[1745864268480,0.2421,1768.5,1768.2,14.5]
[1745864269094,0.2421,1768.5,1768.2,20.15542426]
[1745864269610,0.2421,1768.5,1768.2,20.15531244]
[1745864269915,0.2421,1768.5,1768.2,25.81062344]
[1745864270123,4.992,1768.6,1768.2,17.2023964]
[1745864270297,4.992,1768.6,1768.4,5.65482857]
[1745864271183,4.992,1768.6,1768.3,6.40627174]
[1745864271612,4.992,1768.6,1768.2,5.65524428]
[1745864271808,4.992,1768.6,1768.3,14.5]
[1745864272012,5.81541,1768.6,1768.3,14.5]
[1745864272210,5.81541,1768.6,1768.2,5.65541964]
[1745864272605,4.992,1768.6,1768.3,5.65495421]
[1745864273591,3.2421,1768.7,1768.4,5.65458193]
[1745864273922,4.991,1768.5,1768.4,5.65458193]
[1745864274126,4.991,1768.5,1768.4,20.15458193]
[1745864274807,4.991,1768.5,1768.4,14.5]
[1745864279021,4.991,1768.5,1768.4,20.15482922]
[1745864279324,4.991,1768.5,1768.4,22.7358263]
[1745864279528,4.991,1768.5,1768.4,17.08099708]
[1745864279823,4.991,1768.5,1768.4,14.5]
[1745864281136,4.991,1768.5,1768.2,5.65523395]
[1745864281314,3.2421,1768.4,1767.9,6.8516]
[1745864281499,3.0,1768.4,1767.6,5.65731054]
[1745864281690,0.2421,1768.3,1767.7,15.06573105]
[1745864281896,0.2421,1768.3,1767.8,5.65652037]
[1745864282205,0.2421,1768.3,1767.8,5.65662492]
[1745864282428,0.2421,1768.3,1767.7,20.72262514]
[1745864282625,0.2421,1768.3,1767.8,5.65669763]
[1745864282922,0.2421,1768.3,1767.9,5.65620882]
[1745864283134,0.2421,1768.3,1768.0,5.65598599]
[1745864283348,0.2421,1768.3,1767.9,5.65620882]
[1745864284175,0.2421,1768.3,1767.8,8.10346088]
[1745864284312,0.2421,1768.3,1767.8,6.42239088]
[1745864284514,0.2421,1768.3,1767.8,5.65659088]
[1745864284819,0.2421,1768.3,1767.9,5.65631349]
[1745864285356,0.2421,1768.3,1767.8,5.65652467]
[1745864285646,0.2421,1768.3,1767.8,5.65652086]
[1745864285865,0.74461717,1768.3,1767.8,5.65652086]
[1745864286342,0.74461717,1768.3,1767.9,5.65628328]
[1745864287058,0.74461717,1768.3,1767.9,6.44808328]
[1745864287213,0.2421,1768.3,1767.9,6.44808328]
[1745864287755,0.2421,1768.3,1768.0,14.5]
[1745864290526,0.2421,1768.3,1768.0,20.15600306]
[1745864291266,0.2421,1768.3,1767.7,0.56573105]
[1745864291476,0.2421,1768.3,1767.7,5.65686911]
[1745864291655,0.2421,1768.3,1767.7,20.15686911]
[1745864292382,0.2421,1768.3,1767.8,5.65657485]
[1745864293466,0.2421,1768.3,1767.7,25.81374363]
[1745864293671,0.2421,1768.3,1767.7,14.5]
[1745864293855,0.2421,1768.2,1767.7,20.15700654]
[1745864294057,4.992,1768.1,1767.7,20.15700654]
[1745864294256,0.2421,1767.9,1767.3,5.65818394]
[1745864294567,0.2421,1767.7,1767.2,5.65845972]
[1745864294771,4.99,1767.6,1767.3,14.5]
[1745864296266,4.99,1767.6,1767.4,5.65791388]
[1745864296467,4.99,1767.6,1767.3,14.5]
[1745864296671,0.2421,1767.7,1767.3,15.2573]
[1745864296884,4.99,1767.6,1767.4,5.65781478]
[1745864297035,4.99,1767.6,1767.5,0.56578148]
[1745864297418,4.99,1767.6,1767.5,6.2234901]
[1745864297855,4.99,1767.9,1767.6,6.46684381]
[1745864298051,4.99,1767.9,1767.6,6.46694612]
[1745864298693,4.99,1767.9,1767.5,6.22333768]
[1745864298897,0.7411,1767.8,1767.3,20.15817477]
[1745864299099,0.2421,1767.8,1767.3,20.15817477]
[1745864299664,0.2421,1767.8,1767.3,20.15813634]
[1745864300396,0.2421,1767.8,1767.4,5.65802505]
[1745864300694,0.2421,1767.8,1767.3,25.81626549]
[1745864300897,0.2421,1767.8,1767.4,5.65798131]
[1745864301118,0.2421,1767.8,1767.4,8.23959236]
[1745864301397,0.2421,1767.8,1767.4,13.89741678]
[1745864301698,0.2421,1767.8,1767.4,8.23943547]
[1745864301910,4.99,1767.9,1767.5,0.8097]
[1745864302061,4.991,1767.8,1767.6,5.6572472]
[1745864302395,4.991,1767.8,1767.7,0.56572472]
[1745864302802,21.971,1768.0,1767.8,6.46330394]
[1745864303111,21.971,1768.0,1767.8,0.8067]
[1745864303264,21.971,1768.0,1767.7,6.22279322]
[1745864303265,21.971,1768.0,1767.7,7.02949322]
[1745864303769,22.2131,1768.0,1767.7,6.22279322]
[1745864304371,22.2131,1768.0,1767.7,0.56572472]
[1745864304682,22.2131,1768.0,1767.7,6.22275064]
[1745864305100,21.971,1768.0,1767.8,0.62227506]
[1745864305825,21.971,1768.0,1767.8,6.27901169]
[1745864306187,21.971,1768.0,1767.8,6.27883317]
[1745864306523,21.971,1768.0,1767.8,7.06089896]
[1745864306697,21.971,1768.0,1767.8,12.71742108]
[1745864306894,21.971,1768.0,1767.9,15.77174211]
[1745864307399,4.991,1768.0,1767.9,15.77174211]
[1745864307598,4.991,1768.0,1767.9,21.42817064]
[1745864307798,4.991,1768.0,1767.9,15.77174211]
[1745864308024,4.991,1768.0,1767.9,21.42817064]
[1745864308535,0.2421,1768.4,1768.0,0.55]
[1745864308825,4.991,1768.3,1768.1,6.46288011]
[1745864309137,4.991,1768.3,1768.2,5.65546883]
[1745864309289,4.991,1768.3,1768.2,20.15546883]
[1745864310321,4.991,1768.4,1768.3,5.65501526]
[1745864311007,4.991,1768.4,1768.3,20.15501526]
[1745864311204,4.991,1768.4,1768.3,22.73604987]
[1745864312127,4.991,1768.4,1768.3,17.08103461]
[1745864312432,4.991,1768.4,1768.3,14.5]
[1745864312640,4.991,1768.4,1768.3,20.15514901]
[1745864315031,21.973,1768.6,1768.5,6.43800947]
[1745864315236,4.99,1768.7,1768.6,5.65398878]
[1745864315744,4.99,1768.7,1768.6,6.8631748]
[1745864318660,4.99,1768.7,1768.6,21.3631748]
[1745864319561,4.989,1769.0,1768.6,21.3631748]
[1745864320191,0.2421,1768.9,1768.6,14.5]
[1745864322093,5.89569788,1768.8,1768.1,6.45240699]
[1745864322283,0.2421,1768.7,1768.1,6.45236021]
[1745864322483,4.989,1768.6,1768.2,6.20530456]
[1745864322788,4.989,1768.6,1768.3,14.5]
[1745864322992,4.989,1768.6,1768.3,20.15499828]
[1745864324379,4.989,1768.6,1768.3,25.80997376]
[1745864324585,4.989,1768.6,1768.4,5.65467716]
[1745864325096,4.989,1768.6,1768.3,5.65497548]
[1745864325287,4.989,1768.6,1768.5,14.5]
[1745864327790,4.989,1768.6,1768.5,20.15450947]
[1745864333396,0.2421,1768.9,1768.6,5.65413193]
[1745864333597,4.987,1768.9,1768.6,5.65402077]
[1745864333792,4.987,1768.9,1768.7,5.65380169]
[1745864334005,4.987,1768.9,1768.7,20.15380169]
[1745864334429,4.987,1768.9,1768.7,14.5]
[1745864334728,4.987,1768.9,1768.7,20.1537827]
[1745864335330,4.987,1768.9,1768.7,14.5]
[1745864336815,4.987,1768.9,1768.7,20.15380341]
[1745864337019,4.987,1768.9,1768.7,22.73458146]
[1745864337553,0.2421,1769.2,1768.9,5.65311906]
[1745864337770,4.987,1769.1,1768.9,5.65311906]
[1745864338317,4.987,1769.1,1768.8,5.65333311]
[1745864338531,4.987,1769.1,1768.9,0.56533331]
[1745864338738,4.987,1769.1,1768.7,29.16508014]
[1745864338935,4.987,1769.1,1768.8,5.65349806]
[1745864339326,4.987,1769.1,1768.8,5.65334891]
[1745864339719,4.987,1769.1,1768.8,5.65334494]
[1745864339921,4.987,1769.1,1768.8,5.65333089]
[1745864340130,4.987,1769.1,1769.0,5.65291124]
[1745864340961,4.987,1769.1,1768.9,11.87147122]
[1745864341140,4.987,1769.1,1768.9,6.21838731]
[1745864341342,4.987,1769.1,1768.8,5.65339621]
[1745864341569,4.987,1769.1,1768.9,5.65305967]
[1745864342954,4.987,1769.1,1768.8,5.65339621]
[1745864343276,0.2421,1769.0,1768.7,20.15367686]
[1745864343481,0.2421,1769.0,1768.7,14.5]
[1745864344471,0.2421,1769.0,1768.7,20.15378391]
[1745864345191,4.987,1769.1,1768.7,17.91227535]
[1745864345361,4.987,1769.1,1769.0,5.65291124]
[1745864346988,4.987,1769.1,1769.0,20.15291124]
[1745864348190,4.987,1769.1,1769.0,20.92111124]
[1745864348351,21.966,1769.3,1769.2,5.65227221]
[1745864348552,21.966,1769.3,1769.2,6.78274433]
[1745864350901,21.966,1769.3,1769.1,5.65244902]
[1745864351188,21.966,1769.3,1769.0,21.47089254]
[1745864351366,4.986,1769.3,1769.0,20.70269254]
[1745864351685,4.986,1769.3,1769.1,5.65242204]
[1745864351910,4.986,1769.3,1769.1,11.30478813]
[1745864352184,4.986,1769.5,1769.4,5.65163332]
[1745864354793,4.986,1769.5,1769.4,20.15163332]
[1745864354988,0.2421,1769.7,1769.4,20.15163332]
[1745864355289,4.985,1769.6,1769.5,5.65131393]
[1745864355464,4.985,1769.6,1769.4,20.15146655]
[1745864355792,4.985,1769.6,1769.5,6.45761393]
[1745864356514,4.985,1769.6,1769.4,26.56428026]
[1745864356665,4.985,1769.6,1769.4,29.22070829]
[1745864356994,4.985,1769.6,1769.4,23.56924174]
[1745864358084,4.985,1769.6,1769.5,5.65131393]
[1745864358298,4.985,1769.6,1769.4,23.56924174]
[1745864358462,4.985,1769.6,1769.4,14.5]
[1745864358813,4.985,1769.6,1769.3,5.65179171]
[1745864358814,0.2421,1769.4,1769.0,6.03]
[1745864359097,0.2421,1769.4,1769.0,5.65288785]
[1745864359262,0.2421,1769.4,1768.9,6.46659162]
[1745864359464,0.56631,1769.4,1768.9,6.46659162]
[1745864359664,0.99882366,1769.4,1768.9,12.11964336]
[1745864359884,0.99882366,1769.4,1768.9,6.46659162]
[1745864360090,0.99882366,1769.4,1769.0,5.65287381]
[1745864360283,0.99882366,1769.4,1768.9,6.46659162]
[1745864360693,4.983,1769.3,1769.0,5.65269219]
[1745864361576,4.983,1769.3,1768.9,7.67869015]
[1745864361777,4.983,1769.3,1769.0,5.65272351]
[1745864362284,4.983,1769.3,1769.2,5.65227221]
[1745864362475,4.983,1769.3,1769.1,5.65247741]
[1745864362675,4.983,1769.3,1769.1,6.78299705]
[1745864362909,4.983,1769.3,1769.1,6.78289905]
[1745864363711,4.983,1769.3,1769.0,5.6527278]
[1745864364205,4.983,1769.3,1769.0,11.30542232]
[1745864364393,4.983,1769.3,1769.1,5.65255463]
[1745864364598,4.983,1769.3,1769.0,5.6526905]
[1745864364798,4.983,1769.3,1769.0,11.30538865]
[1745864364983,4.983,1769.3,1769.0,5.6526905]
[1745864365532,4.983,1769.3,1769.1,14.5]
[1745864367945,4.983,1769.3,1769.1,20.15258516]
[1745864368633,4.983,1769.3,1769.1,14.5]
[1745864371236,4.983,1769.3,1769.0,5.65268248]
[1745864371541,4.983,1769.3,1769.0,20.15268248]
[1745864371947,4.983,1769.3,1769.0,25.80537065]
[1745864372139,4.983,1769.3,1769.0,22.93577908]
[1745864372467,4.983,1769.3,1769.1,5.65256939]
[1745864372640,4.983,1769.3,1769.2,6.41607221]
[1745864373152,4.983,1769.3,1769.2,20.91607221]
[1745864373353,4.983,1769.5,1769.3,5.65184224]
[1745864373529,4.983,1769.5,1769.3,8.30863369]
[1745864373730,4.983,1769.5,1769.3,5.65184224]
[1745864373965,4.983,1769.5,1769.4,14.5]
[1745864376776,5.2251,1769.5,1769.4,14.5]
[1745864377080,8.2251,1769.5,1769.0,6.03]
[1745864377370,8.2251,1769.5,1769.0,5.65286329]
[1745864377579,9.34976079,1769.5,1769.1,14.5]
[1745864379671,8.2251,1769.5,1769.1,14.5]
[1745864381464,8.2251,1769.5,1769.1,20.15245583]
[1745864382384,8.2251,1769.5,1769.1,14.5]
[1745864383539,8.2251,1769.5,1769.1,20.15249254]
[1745864384296,8.2251,1769.5,1769.1,14.5]
[1745864384594,9.34976079,1769.5,1769.1,14.5]
[1745864387262,9.34976079,1769.5,1769.1,20.15255335]
[1745864387799,9.34976079,1769.5,1769.1,14.5]
[1745864388099,9.34976079,1769.5,1769.1,20.15253064]
[1745864388597,9.34976079,1769.5,1769.1,14.5]
[1745864389920,4.98,1769.4,1769.1,14.5]
[1745864391979,4.98,1769.4,1769.1,20.15238661]
[1745864392213,4.98,1769.4,1769.2,5.65218033]
[1745864392515,4.98,1769.3,1769.2,5.65218033]
[1745864392966,4.98,1769.5,1769.3,5.65174963]
[1745864393316,4.98,1769.5,1769.4,5.65154435]
[1745864393465,4.98,1769.6,1769.5,5.65102249]
[1745864394511,4.98,1769.6,1769.4,13.19636117]
[1745864395201,4.98,1769.6,1769.4,13.19631603]
[1745864395400,4.98,1769.6,1769.4,7.54487123]
[1745864395900,5.2221,1769.6,1769.3,5.65178069]
[1745864397287,5.2221,1769.6,1769.3,11.30350318]
[1745864397597,5.2221,1769.6,1769.3,5.65172249]
[1745864399614,5.2221,1769.6,1769.4,14.5]
[1745864405069,0.2421,1769.4,1768.9,0.7727]
[1745864405367,0.2421,1769.4,1768.9,6.42566384]
[1745864405535,0.2421,1769.4,1769.0,20.15289554]
[1745864405731,0.2421,1769.4,1769.0,20.15270584]
[1745864405918,0.2421,1769.4,1769.1,5.65257387]
[1745864406118,0.2421,1769.4,1769.1,5.65256871]
[1745864406318,0.2421,1769.4,1769.0,5.65270584]
[1745864406514,0.2421,1769.4,1769.1,15.06527058]
[1745864407763,0.2421,1769.4,1769.1,20.7176733]
[1745864408354,3.0,1769.5,1769.2,5.65217398]
[1745864409371,3.0,1769.5,1769.1,20.7176733]
[1745864409794,5.2221,1769.6,1769.2,6.42060654]
[1745864409932,5.2221,1769.8,1769.5,5.65110566]
[1745864410137,4.98,1769.8,1769.6,5.65068132]
[1745864410571,4.98,1769.8,1769.5,6.4197837]
[1745864411571,4.98,1769.8,1769.5,6.41975537]
[1745864411740,4.98,1769.8,1769.5,7.68188157]
[1745864412074,4.98,1769.8,1769.6,5.65095317]
[1745864412239,4.98,1769.8,1769.6,5.65078722]
[1745864412961,4.98,1769.8,1769.7,5.65067525]
[1745864413160,4.98,1769.8,1769.6,5.65078722]
[1745864413468,4.98,1769.8,1769.5,7.6818633]
[1745864413659,4.98,1769.8,1769.6,5.65095937]
[1745864415175,4.98,1769.8,1769.7,5.65067525]
[1745864415874,4.98,1769.8,1769.6,5.65085129]
[1745864416040,4.98,1769.8,1769.6,5.65082906]
[1745864416237,4.98,1769.8,1769.7,6.21575816]
[1745864416433,16.971,1769.9,1769.7,6.97575816]
[1745864416675,21.947,1769.9,1769.8,5.65035597]
[1745864416878,0.2421,1770.2,1769.9,5.64997517]
[1745864417176,0.2421,1770.2,1770.0,6.40198345]
[1745864417177,4.976,1770.2,1770.0,6.40198345]
[1745864417550,4.976,1770.2,1770.0,12.05154069]
[1745864417752,5.2181,1770.5,1770.1,5.64939833]
[1745864417972,7.976,1770.5,1770.1,5.64939833]
[1745864418175,7.976,1770.5,1770.2,14.5]
[1745864419074,4.976,1770.5,1770.2,14.5]
[1745864419242,4.976,1770.5,1770.2,20.93393251]
[1745864419578,4.976,1770.5,1770.2,17.94331335]
[1745864419749,5.2181,1770.5,1770.2,14.5]
[1745864420076,5.2181,1770.5,1770.2,20.14906453]
[1745864420444,4.976,1770.5,1770.2,20.14906453]
[1745864420644,4.976,1770.5,1770.2,14.5]
[1745864422489,4.976,1770.5,1770.2,20.14880675]
[1745864422705,4.976,1770.5,1770.3,2.01488067]
[1745864423076,4.976,1770.5,1770.2,6.47966412]
[1745864423303,4.976,1770.5,1770.3,14.5]
[1745864424679,4.976,1770.5,1770.3,20.1486401]
[1745864424995,4.976,1770.5,1770.3,25.79718347]
[1745864425495,4.976,1770.5,1770.4,5.64844103]
[1745864425662,4.976,1770.5,1770.4,8.22813947]
[1745864426061,4.976,1770.5,1770.4,2.57969844]
[1745864426494,4.976,1770.5,1770.3,5.64854337]
[1745864426661,4.976,1770.5,1770.3,11.29712528]
[1745864426998,21.94,1770.6,1770.4,20.14829154]
[1745864427397,21.94,1770.6,1770.5,5.64812199]
[1745864428108,0.5481,1770.8,1770.6,6.19761872]
[1745864428290,0.5481,1770.8,1770.7,10.04969193]
[1745864428491,0.5481,1770.8,1770.7,0.8307]
[1745864428663,0.5481,1770.8,1770.7,6.47818404]
[1745864430879,0.5481,1770.8,1770.7,0.8307]
[1745864431198,0.5481,1770.8,1770.7,14.5]
[1745864434820,0.5481,1770.8,1770.3,6.43805432]
[1745864435175,0.5481,1770.8,1770.3,6.43804399]
[1745864435370,0.5481,1770.8,1770.4,14.5]
[1745864435575,0.2421,1770.7,1770.4,14.5]
[1745864435811,4.973,1770.6,1770.4,14.5]
[1745864437425,0.2421,1770.5,1770.0,6.85466491]
[1745864437588,0.2421,1770.5,1770.1,5.64919722]
[1745864437992,4.973,1770.6,1770.3,5.64865651]
[1745864438582,4.973,1770.6,1770.2,20.95015482]
[1745864439120,4.973,1770.5,1770.3,5.64866324]
[1745864439281,4.973,1770.5,1770.3,2.65988568]
[1745864439684,4.973,1770.5,1770.3,8.30864044]
[1745864440111,4.973,1770.5,1770.3,2.65988568]
[1745864441016,4.973,1770.5,1770.3,8.30864104]
[1745864442121,4.973,1770.5,1770.3,5.6487402]
[1745864442327,4.973,1770.5,1770.4,14.5]
[1745864443428,0.2421,1770.7,1770.4,20.14844103]
[1745864443592,4.973,1770.6,1770.4,14.5]
[1745864444099,6.02150789,1770.5,1769.8,0.8129]
[1745864444300,3.02150789,1770.3,1769.8,6.46316006]
[1745864444539,4.973,1770.2,1769.8,0.8129]
[1745864444731,0.2421,1770.1,1769.9,14.5]
[1745864446035,3.26360789,1770.1,1769.9,14.5]
[1745864449231,3.26360789,1770.1,1769.6,6.46585381]
[1745864449432,3.26360789,1770.1,1769.7,0.64658538]
[1745864449744,3.26360789,1770.1,1769.8,14.5]
[1745864451209,0.2421,1769.8,1769.4,1.3383]
[1745864451409,5.2131,1769.8,1769.4,6.98982208]
[1745864451609,5.2131,1769.8,1769.5,14.5]
[1745864452146,3.02150789,1769.7,1769.5,14.5]
[1745864453433,5.2131,1769.8,1769.5,14.5]
[1745864457324,5.59185759,1769.7,1769.5,14.5]
[1745864457529,0.2421,1769.6,1769.5,14.5]
[1745864460359,0.2421,1769.7,1769.5,14.5]
[1745864462529,3.2421,1769.7,1769.5,14.5]
[1745864463236,3.2421,1769.7,1769.2,0.7883]
[1745864463433,0.32421,1769.6,1769.2,0.7883]
[1745864463637,5.83395759,1769.5,1768.9,6.90023131]
[1745864463821,4.972,1769.4,1768.9,6.90017791]
[1745864464023,4.972,1769.4,1768.9,6.44282835]
[1745864464262,4.972,1769.4,1769.0,14.5]
[1745864464630,4.972,1769.4,1769.0,20.15290991]
[1745864465826,4.972,1769.4,1769.0,14.5]
[1745864466226,4.972,1769.4,1769.0,20.15289096]
[1745864466972,4.972,1769.4,1769.0,14.5]
[1745864467354,4.972,1769.4,1769.0,20.15275918]
[1745864467851,4.972,1769.4,1769.0,20.15289656]
[1745864468272,4.972,1769.4,1769.0,14.5]
[1745864468431,4.972,1769.4,1769.0,20.15275573]
[1745864469364,4.972,1769.4,1769.1,5.65256999]
[1745864469740,4.972,1769.4,1769.0,5.6527278]
[1745864470041,4.972,1769.4,1769.0,5.65269618]
[1745864470429,4.972,1769.4,1769.1,5.652361]
[1745864470929,4.972,1769.4,1769.1,6.410561]
[1745864472581,4.972,1769.4,1769.1,0.7582]
[1745864475058,4.972,1769.4,1769.0,6.47849112]
[1745864477349,4.972,1769.4,1768.9,6.45162739]
[1745864477547,0.2421,1769.3,1768.9,0.7986]
[1745864477767,4.972,1769.4,1769.1,5.65231814]
[1745864478077,4.972,1769.4,1769.2,0.7986]
[1745864478272,4.972,1769.4,1769.2,6.45079533]
[1745864478473,4.972,1769.4,1769.3,5.65195274]
[1745864478663,4.972,1769.4,1769.2,12.10286983]
[1745864478865,4.97,1769.5,1769.3,6.86219954]
[1745864479062,4.97,1769.5,1769.3,5.65191256]
[1745864479245,4.97,1769.5,1769.2,6.45066113]
[1745864479577,5.2121,1769.5,1769.3,5.65191669]
[1745864479754,4.97,1769.5,1769.3,5.65191669]
[1745864480281,4.97,1769.5,1769.2,12.10270314]
[1745864480575,4.97,1769.5,1769.2,7.66091879]
[1745864480939,3.2421,1769.7,1769.4,5.65156322]
[1745864481141,4.97,1769.6,1769.4,5.65156322]
[1745864481573,3.66883751,1769.8,1769.4,5.65156322]
[1745864481779,4.97,1769.6,1769.4,5.65156322]
[1745864481938,4.97,1769.6,1769.5,5.65131393]
[1745864482142,0.2421,1770.0,1769.6,5.65091224]
[1745864482378,4.97,1769.9,1769.8,5.65034751]
[1745864482552,5.2121,1769.9,1769.6,5.65077364]
[1745864482873,5.2121,1769.9,1769.6,1.21190028]
[1745864483172,5.2121,1769.9,1769.6,6.86287472]
[1745864483379,5.2121,1769.9,1769.5,6.46818605]
[1745864483977,5.2121,1769.9,1769.5,0.8171]
[1745864484350,8.23405954,1769.9,1769.4,0.7525]
[1745864484554,8.23405954,1769.9,1769.4,6.4039831]
[1745864485165,4.97,1769.9,1769.8,5.65035597]
[1745864485369,4.97,1769.9,1769.7,0.7525]
[1745864485550,4.97,1769.9,1769.8,14.5]
[1745864487798,5.2121,1769.9,1769.8,14.5]
[1745864487992,6.03550595,1769.9,1769.8,14.5]
[1745864488286,6.03550595,1769.9,1769.4,11.30306772]
[1745864488484,5.2121,1769.9,1769.4,5.65147269]
[1745864488873,5.2121,1769.9,1769.5,14.5]
[1745864489050,5.2121,1769.9,1769.5,20.15131173]
[1745864489386,5.2121,1769.9,1769.5,25.8023995]
[1745864489886,5.2121,1769.9,1769.5,20.15108777]
[1745864490083,4.97,1769.9,1769.6,2.83490878]
[1745864490289,4.97,1769.9,1769.7,5.65056343]
[1745864490588,4.97,1769.9,1769.6,8.48567636]
[1745864490881,4.97,1769.9,1769.7,11.30108789]
[1745864491048,4.97,1769.9,1769.8,5.65035597]
[1745864491256,4.97,1769.9,1769.8,1.13008468]
[1745864493398,4.97,1769.9,1769.6,8.48569359]
[1745864493699,4.97,1769.9,1769.7,5.65056428]
[1745864497015,4.97,1769.9,1769.8,14.5]
[1745864501920,5.2121,1769.9,1769.4,12.98910887]
[1745864502113,5.2121,1769.9,1769.5,5.65109798]
[1745864502319,5.2121,1769.9,1769.6,15.0651098]
[1745864502482,4.97,1769.9,1769.6,20.71596709]
[1745864504017,4.97,1769.9,1769.6,20.71590951]
[1745864504258,4.97,1769.9,1769.7,0.7576]
[1745864505343,4.97,1769.9,1769.6,20.71588092]
[1745864505502,4.97,1769.9,1769.6,15.0651098]
[1745864505704,4.97,1769.9,1769.6,14.5]
[1745864506151,5.2121,1769.9,1769.6,14.5]
[1745864506351,0.2421,1769.7,1769.4,6.03]
[1745864506652,3.02195954,1769.6,1769.4,6.03]
[1745864506860,4.969,1769.5,1769.4,20.53]
[1745864507060,4.969,1769.5,1769.4,14.5]
[1745864519372,4.969,1769.5,1769.4,15.95]
[1745864519552,4.969,1769.5,1769.4,2.2293]
[1745864519752,4.969,1769.5,1769.4,0.7793]
[1745864519937,4.969,1769.5,1769.4,15.2793]
[1745864520435,4.969,1769.5,1769.4,20.93093332]
[1745864520757,4.969,1769.5,1769.4,15.2793]
[1745864524979,4.969,1769.5,1769.4,14.5]
[1745864528185,11.51206954,1769.5,1769.4,14.5]
[1745864528359,11.75416954,1769.5,1768.9,6.4532998]
[1745864528680,11.23305954,1769.5,1768.9,6.4532998]
[1745864529184,0.2421,1769.2,1768.7,5.65355913]
[1745864529353,4.966,1769.1,1768.8,20.15350638]
[1745864529551,4.966,1769.1,1768.8,22.81180277]
[1745864530358,4.966,1769.1,1768.8,22.81164284]
[1745864530685,4.966,1769.1,1768.8,22.8116263]
[1745864530862,4.966,1769.1,1768.8,14.5]
[1745864531257,4.966,1769.1,1768.9,5.65322179]
[1745864531470,4.966,1769.1,1769.0,6.40921124]
[1745864531974,4.966,1769.1,1769.0,20.90921124]
[1745864532481,4.966,1769.1,1769.0,15.2563]
[1745864533080,4.966,1769.1,1769.0,20.90921124]
[1745864533984,4.966,1769.1,1769.0,15.2563]
[1745864534582,4.966,1769.1,1769.0,20.90921124]
[1745864534986,4.966,1769.1,1769.0,15.2563]
[1745864537591,4.966,1769.1,1769.0,20.90921124]
[1745864537887,4.966,1769.1,1769.0,23.56543368]
[1745864538286,4.966,1769.1,1769.0,17.91252244]
[1745864538485,4.966,1769.1,1769.0,23.56543368]
[1745864539399,4.966,1769.1,1769.0,17.91252244]
[1745864539557,4.966,1769.1,1769.0,14.5]
[1745864539763,5.2081,1769.1,1769.0,14.5]
[1745864542696,8.23005954,1769.1,1768.6,0.7773]
[1745864542881,3.0,1769.0,1768.6,0.7773]
[1745864543068,3.0,1769.0,1768.7,14.5]
[1745864543490,3.0,1769.0,1768.7,16.59314713]
[1745864545295,3.0,1769.0,1768.7,22.24698504]
[1745864545542,8.23005954,1769.1,1768.8,5.65332606]
[1745864545543,5.2081,1769.1,1768.8,5.65332606]
[1745864545667,3.2421,1769.3,1769.0,5.65275102]
[1745864545861,4.963,1769.2,1769.0,6.86556545]
[1745864546183,4.963,1769.3,1769.2,5.65213287]
[1745864546703,4.963,1769.4,1769.2,11.30418672]
[1745864546908,4.963,1769.4,1769.2,5.65205385]
[1745864547210,4.963,1769.4,1769.2,12.51687325]
[1745864547376,4.963,1769.4,1769.3,20.92775274]
[1745864547885,4.963,1769.5,1769.3,20.92775274]
[1745864549514,4.963,1769.5,1769.3,26.57953673]
[1745864549817,4.963,1769.5,1769.4,5.65163332]
[1745864550314,4.963,1769.5,1769.4,8.30955505]
[1745864550705,4.963,1769.5,1769.3,6.42758399]
[1745864551005,4.963,1769.5,1769.4,14.5]
[1745864551705,0.42442264,1769.8,1769.4,14.5]
[1745864551903,0.42442264,1769.8,1769.7,5.65067525]
[1745864552104,4.963,1769.9,1769.8,5.65035597]
[1745864554002,4.963,1769.9,1769.8,6.40365597]
[1745864554386,4.963,1769.9,1769.8,20.90365597]
[1745864556288,28.66715163,1770.5,1769.8,20.90365597]
[1745864556289,4.962,1770.2,1770.1,5.64939521]
[1745864556596,4.962,1770.2,1770.0,5.64958586]
[1745864556804,4.962,1770.2,1770.0,6.7795287]
[1745864557289,4.962,1770.2,1770.1,14.5]
[1745864563194,4.961,1770.2,1770.1,14.5]
[1745864563929,3.2421,1770.1,1769.5,5.65125516]
[1745864564227,3.02195954,1769.8,1769.4,12.07158545]
[1745864564533,4.961,1769.7,1769.6,14.5]
[1745864570440,4.961,1769.7,1769.6,20.15099457]
[1745864570828,4.961,1769.7,1769.6,14.5]
[1745864571132,4.961,1769.7,1769.6,20.15099457]
[1745864571347,4.961,1769.7,1769.6,14.5]
[1745864571533,4.961,1769.7,1769.6,20.90849457]
[1745864572315,4.95351268,1769.7,1769.6,15.2575]
[1745864577272,4.95351268,1769.7,1769.6,14.5]
[1745864583093,8.21757222,1769.7,1769.6,14.5]